[Event "Titled Tuesday Blitz May 9 Early 2023"]
[White "Gurevich, Dmitry"]
[Black "Abrosimov, Vladimir"]
[WhiteFideId "2000407"]
[BlackFideId "4166892"]
[WhiteElo "2506"]
[BlackElo "2336"]
[Result "1-0"]
[Round "05"]
[TimeControl "180+2"]
[Date "2023.05.09"]
[WhiteClock "0:00:21"]
[BlackClock "0:00:16"]

1. d4 {[%clk 0:03:00]}  Nf6 {[%clk 0:02:59]} 2. c4 {[%clk 0:03:00]}  c5 {[%clk 0:02:59]} 3. Nf3 {[%clk 0:02:59]}  cxd4 {[%clk 0:02:59]} 4. Nxd4 {[%clk 0:02:59]}  Nc6 {[%clk 0:03:00]} 5. Nc3 {[%clk 0:02:58]}  d6 {[%clk 0:02:57]} 6. e4 {[%clk 0:02:56]}  g6 {[%clk 0:02:56]} 7. Be2 {[%clk 0:02:55]}  Bg7 {[%clk 0:02:57]} 8. Be3 {[%clk 0:02:55]}  O-O {[%clk 0:02:57]} 9. Nc2 {[%clk 0:02:55]}  a6 {[%clk 0:02:56]} 10. O-O {[%clk 0:02:54]}  Ne5 {[%clk 0:02:53]} 11. f3 {[%clk 0:02:50]}  Qc7 {[%clk 0:02:52]} 12. Na3 {[%clk 0:02:42]}  Be6 {[%clk 0:02:50]} 13. Rc1 {[%clk 0:02:38]}  Rac8 {[%clk 0:02:46]} 14. Nd5 {[%clk 0:02:15]}  Bxd5 {[%clk 0:02:42]} 15. cxd5 {[%clk 0:02:12]}  Qb8 {[%clk 0:02:42]} 16. Qa4 {[%clk 0:01:58]}  Rxc1 {[%clk 0:02:35]} 17. Rxc1 {[%clk 0:01:56]}  Rc8 {[%clk 0:02:36]} 18. Rxc8+ {[%clk 0:01:53]}  Qxc8 {[%clk 0:02:37]} 19. Qc2 {[%clk 0:01:53]}  Qxc2 {[%clk 0:02:34]} 20. Nxc2 {[%clk 0:01:53]}  Ned7 {[%clk 0:02:27]} 21. b3 {[%clk 0:01:51]}  Ne8 {[%clk 0:02:24]} 22. Kf1 {[%clk 0:01:49]}  Nc7 {[%clk 0:02:24]} 23. Ke1 {[%clk 0:01:49]}  Nb5 {[%clk 0:02:24]} 24. Kd2 {[%clk 0:01:49]}  Nc3 {[%clk 0:02:22]} 25. a4 {[%clk 0:01:41]}  Nxe2 {[%clk 0:02:21]} 26. Kxe2 {[%clk 0:01:40]}  Kf8 {[%clk 0:02:17]} 27. Kd3 {[%clk 0:01:35]}  Ne5+ {[%clk 0:02:15]} 28. Kd2 {[%clk 0:01:34]}  Ke8 {[%clk 0:02:15]} 29. h3 {[%clk 0:01:29]}  Nd7 {[%clk 0:02:12]} 30. Na3 {[%clk 0:01:27]}  Kd8 {[%clk 0:02:09]} 31. Nc4 {[%clk 0:01:25]}  Kc7 {[%clk 0:02:09]} 32. g4 {[%clk 0:01:23]}  Ne5 {[%clk 0:02:08]} 33. Nxe5 {[%clk 0:01:20]}  Bxe5 {[%clk 0:02:08]} 34. Kd3 {[%clk 0:01:15]}  Bg7 {[%clk 0:01:58]} 35. Kc4 {[%clk 0:01:15]}  Be5 {[%clk 0:01:57]} 36. b4 {[%clk 0:01:14]}  Bg7 {[%clk 0:01:53]} 37. b5 {[%clk 0:01:14]}  axb5+ {[%clk 0:01:43]} 38. Kxb5 {[%clk 0:01:14]}  e6 {[%clk 0:01:32]} 39. Bg5 {[%clk 0:00:56]}  exd5 {[%clk 0:01:25]} 40. exd5 {[%clk 0:00:55]}  h5 {[%clk 0:01:08]} 41. gxh5 {[%clk 0:00:53]}  gxh5 {[%clk 0:01:09]} 42. Be3 {[%clk 0:00:52]}  Be5 {[%clk 0:01:06]} 43. Bb6+ {[%clk 0:00:46]}  Kd7 {[%clk 0:01:05]} 44. Kc4 {[%clk 0:00:45]}  f5 {[%clk 0:00:59]} 45. Kd3 {[%clk 0:00:42]}  Ke7 {[%clk 0:00:58]} 46. Bf2 {[%clk 0:00:36]}  Kd7 {[%clk 0:00:54]} 47. Be1 {[%clk 0:00:31]}  Ke7 {[%clk 0:00:52]} 48. Ba5 {[%clk 0:00:30]}  Kd7 {[%clk 0:00:52]} 49. Bb6 {[%clk 0:00:29]}  Ke7 {[%clk 0:00:52]} 50. Ke2 {[%clk 0:00:29]}  Kd7 {[%clk 0:00:51]} 51. Ke3 {[%clk 0:00:29]}  Ke7 {[%clk 0:00:49]} 52. Bd4 {[%clk 0:00:28]}  Kf6 {[%clk 0:00:32]} 53. f4 {[%clk 0:00:25]}  Bxd4+ {[%clk 0:00:28]} 54. Kxd4 {[%clk 0:00:26]}  Ke7 {[%clk 0:00:29]} 55. Kc4 {[%clk 0:00:26]}  Kd7 {[%clk 0:00:29]} 56. Kb5 {[%clk 0:00:27]}  Kc7 {[%clk 0:00:27]} 57. Ka5 {[%clk 0:00:26]}  b6+ {[%clk 0:00:17]} 58. Ka6 {[%clk 0:00:24]}  h4 {[%clk 0:00:16]} 59. Ka7 {[%clk 0:00:24]}  Kc8 {[%clk 0:00:13]} 60. Kxb6 {[%clk 0:00:23]}  Kb8 {[%clk 0:00:13]} 61. Kc6 {[%clk 0:00:21]}  Ka7 {[%clk 0:00:13]} 62. Kxd6 {[%clk 0:00:21]}  Ka6 {[%clk 0:00:14]} 63. Ke7 {[%clk 0:00:22]}  Kb7 {[%clk 0:00:14]} 64. d6 {[%clk 0:00:22]}  Kc6 {[%clk 0:00:14]} 65. d7 {[%clk 0:00:23]}  Kb7 {[%clk 0:00:15]} 66. d8=Q {[%clk 0:00:21]}  Ka7 {[%clk 0:00:16]} 1-0


[Site "https://www.chess.com"]

[Event "Titled Tuesday Blitz May 9 Early 2023"]
[White "Kiseleva, Arina"]
[Black "Balla, Tamas-Kristof"]
[WhiteFideId "4164989"]
[BlackFideId "1208497"]
[WhiteElo "1708"]
[BlackElo "2334"]
[Result "1-0"]
[Round "05"]
[TimeControl "180+2"]
[Date "2023.05.09"]
[WhiteClock "0:00:11"]
[BlackClock "0:00:01"]

1. d4 {[%clk 0:03:00]}  d5 {[%clk 0:02:58]} 2. Nf3 {[%clk 0:02:57]}  Nf6 {[%clk 0:02:56]} 3. e3 {[%clk 0:02:56]}  Bg4 {[%clk 0:02:54]} 4. Be2 {[%clk 0:02:54]}  e6 {[%clk 0:02:54]} 5. Nbd2 {[%clk 0:02:53]}  c5 {[%clk 0:02:54]} 6. h3 {[%clk 0:02:52]}  Bh5 {[%clk 0:02:54]} 7. O-O {[%clk 0:02:48]}  Nc6 {[%clk 0:02:54]} 8. a3 {[%clk 0:02:42]}  Bd6 {[%clk 0:02:53]} 9. dxc5 {[%clk 0:02:40]}  Bxc5 {[%clk 0:02:53]} 10. b4 {[%clk 0:02:40]}  Bd6 {[%clk 0:02:53]} 11. Bb2 {[%clk 0:02:40]}  O-O {[%clk 0:02:52]} 12. c4 {[%clk 0:02:33]}  Rc8 {[%clk 0:02:50]} 13. Qb3 {[%clk 0:02:29]}  dxc4 {[%clk 0:02:35]} 14. Nxc4 {[%clk 0:02:27]}  Bb8 {[%clk 0:02:35]} 15. Rac1 {[%clk 0:02:22]}  Ne4 {[%clk 0:02:00]} 16. Rfd1 {[%clk 0:02:13]}  Qe7 {[%clk 0:01:57]} 17. b5 {[%clk 0:02:11]}  Nd8 {[%clk 0:01:49]} 18. Be5 {[%clk 0:01:31]}  Bxe5 {[%clk 0:01:41]} 19. Ncxe5 {[%clk 0:01:29]}  Rxc1 {[%clk 0:01:26]} 20. Rxc1 {[%clk 0:01:30]}  b6 {[%clk 0:01:11]} 21. Bd3 {[%clk 0:01:17]}  Nc5 {[%clk 0:01:07]} 22. Qb4 {[%clk 0:01:10]}  Qf6 {[%clk 0:00:59]} 23. Bb1 {[%clk 0:01:04]}  Ndb7 {[%clk 0:00:55]} 24. Ng4 {[%clk 0:00:55]}  Qd8 {[%clk 0:00:48]} 25. Qf4 {[%clk 0:00:43]}  Bg6 {[%clk 0:00:41]} 26. Bxg6 {[%clk 0:00:41]}  hxg6 {[%clk 0:00:42]} 27. Nge5 {[%clk 0:00:31]}  Nd3 {[%clk 0:00:32]} 28. Nxd3 {[%clk 0:00:24]}  Qxd3 {[%clk 0:00:33]} 29. Ng5 {[%clk 0:00:20]}  Qxa3 {[%clk 0:00:19]} 30. Rc7 {[%clk 0:00:19]}  Qa1+ {[%clk 0:00:16]} 31. Kh2 {[%clk 0:00:18]}  Rd8 {[%clk 0:00:10]} 32. Qxf7+ {[%clk 0:00:14]}  Kh8 {[%clk 0:00:09]} 33. Rxb7 {[%clk 0:00:12]}  Qe5+ {[%clk 0:00:08]} 34. f4 {[%clk 0:00:12]}  Qb2 {[%clk 0:00:01]} 35. Qxg6 {[%clk 0:00:11]} 1-0


[Site "https://www.chess.com"]

[Event "Titled Tuesday Blitz May 9 Early 2023"]
[White "Feinig, Mario"]
[Black "Ramirez, Maria Eugenia"]
[WhiteFideId "1618113"]
[BlackFideId "3301680"]
[WhiteElo "2163"]
[BlackElo "1842"]
[Result "0-1"]
[Round "05"]
[TimeControl "180+2"]
[Date "2023.05.09"]
[WhiteClock "0:00:39"]
[BlackClock "0:01:41"]

1. c4 {[%clk 0:03:00]}  Nf6 {[%clk 0:02:58]} 2. Nc3 {[%clk 0:03:00]}  e6 {[%clk 0:02:58]} 3. g3 {[%clk 0:03:00]}  d5 {[%clk 0:02:58]} 4. Bg2 {[%clk 0:02:58]}  c6 {[%clk 0:02:57]} 5. b3 {[%clk 0:02:50]}  Bb4 {[%clk 0:02:51]} 6. Bb2 {[%clk 0:02:50]}  d4 {[%clk 0:02:50]} 7. Ne4 {[%clk 0:02:49]}  e5 {[%clk 0:02:45]} 8. a3 {[%clk 0:02:44]}  Be7 {[%clk 0:02:42]} 9. Nxf6+ {[%clk 0:02:29]}  Bxf6 {[%clk 0:02:41]} 10. d3 {[%clk 0:02:30]}  O-O {[%clk 0:02:40]} 11. Nf3 {[%clk 0:02:29]}  g6 {[%clk 0:02:33]} 12. O-O {[%clk 0:02:26]}  Bg7 {[%clk 0:02:34]} 13. e3 {[%clk 0:02:25]}  dxe3 {[%clk 0:02:24]} 14. fxe3 {[%clk 0:02:26]}  Re8 {[%clk 0:02:21]} 15. d4 {[%clk 0:02:23]}  e4 {[%clk 0:02:13]} 16. Nd2 {[%clk 0:02:20]}  f5 {[%clk 0:02:14]} 17. Qc2 {[%clk 0:02:00]}  Qg5 {[%clk 0:02:09]} 18. Rfe1 {[%clk 0:02:00]}  Nd7 {[%clk 0:02:06]} 19. Nf1 {[%clk 0:01:40]}  Nf6 {[%clk 0:02:00]} 20. b4 {[%clk 0:01:25]}  Ng4 {[%clk 0:01:53]} 21. d5 {[%clk 0:01:07]}  Ne5 {[%clk 0:01:41]} 22. Qc3 {[%clk 0:00:39]} 0-1


[Site "https://www.chess.com"]

[Event "Titled Tuesday Blitz May 9 Early 2023"]
[White "Tarasova, Viktoriya"]
[Black "Floresvillar Gonzalez, Luis Migu"]
[WhiteFideId "4175840"]
[BlackFideId "5100542"]
[WhiteElo "2182"]
[BlackElo "2040"]
[Result "1-0"]
[Round "05"]
[TimeControl "180+2"]
[Date "2023.05.09"]
[WhiteClock "0:00:09"]
[BlackClock "0:00:00"]

1. d4 {[%clk 0:03:00]}  d5 {[%clk 0:02:58]} 2. c4 {[%clk 0:03:01]}  c6 {[%clk 0:02:58]} 3. Nf3 {[%clk 0:03:00]}  Nf6 {[%clk 0:02:58]} 4. Nc3 {[%clk 0:03:01]}  dxc4 {[%clk 0:02:57]} 5. a4 {[%clk 0:03:01]}  Bf5 {[%clk 0:02:56]} 6. Ne5 {[%clk 0:03:00]}  e6 {[%clk 0:02:56]} 7. f3 {[%clk 0:03:00]}  Bb4 {[%clk 0:02:55]} 8. Kf2 {[%clk 0:03:00]}  Nbd7 {[%clk 0:02:46]} 9. Nxc4 {[%clk 0:02:59]}  O-O {[%clk 0:02:43]} 10. e4 {[%clk 0:02:59]}  Bg6 {[%clk 0:02:42]} 11. Be3 {[%clk 0:02:58]}  Re8 {[%clk 0:02:36]} 12. a5 {[%clk 0:02:57]}  e5 {[%clk 0:02:33]} 13. Be2 {[%clk 0:02:44]}  exd4 {[%clk 0:02:25]} 14. Bxd4 {[%clk 0:02:45]}  Bc5 {[%clk 0:02:14]} 15. Bxc5 {[%clk 0:02:42]}  Nxc5 {[%clk 0:02:13]} 16. Qxd8 {[%clk 0:02:29]}  Raxd8 {[%clk 0:02:12]} 17. Rad1 {[%clk 0:02:29]}  Kf8 {[%clk 0:01:55]} 18. g4 {[%clk 0:02:23]}  Ke7 {[%clk 0:01:50]} 19. h4 {[%clk 0:02:22]}  h6 {[%clk 0:01:46]} 20. g5 {[%clk 0:02:20]}  hxg5 {[%clk 0:01:43]} 21. hxg5 {[%clk 0:02:20]}  Nh5 {[%clk 0:01:43]} 22. Rxd8 {[%clk 0:02:13]}  Rxd8 {[%clk 0:01:42]} 23. Rh4 {[%clk 0:01:20]}  Nd3+ {[%clk 0:01:37]} 24. Ke3 {[%clk 0:01:18]}  Ndf4 {[%clk 0:01:16]} 25. Rxf4 {[%clk 0:01:15]}  Nxf4 {[%clk 0:01:15]} 26. Kxf4 {[%clk 0:01:16]}  b5 {[%clk 0:01:12]} 27. axb6 {[%clk 0:01:15]}  axb6 {[%clk 0:01:12]} 28. Nxb6 {[%clk 0:01:15]}  Rd2 {[%clk 0:01:09]} 29. Nc4 {[%clk 0:01:14]}  Rc2 {[%clk 0:01:05]} 30. Ke3 {[%clk 0:01:14]}  Rc1 {[%clk 0:01:03]} 31. f4 {[%clk 0:01:12]}  f6 {[%clk 0:01:00]} 32. gxf6+ {[%clk 0:01:09]}  gxf6 {[%clk 0:00:59]} 33. Kd2 {[%clk 0:01:03]}  Rg1 {[%clk 0:00:57]} 34. b4 {[%clk 0:00:50]}  Rg2 {[%clk 0:00:56]} 35. e5 {[%clk 0:00:39]}  fxe5 {[%clk 0:00:53]} 36. fxe5 {[%clk 0:00:39]}  Bh5 {[%clk 0:00:51]} 37. Ke3 {[%clk 0:00:28]}  Bxe2 {[%clk 0:00:48]} 38. Nxe2 {[%clk 0:00:28]}  Rh2 {[%clk 0:00:43]} 39. Na5 {[%clk 0:00:22]}  Kd7 {[%clk 0:00:39]} 40. Nd4 {[%clk 0:00:20]}  Rh3+ {[%clk 0:00:37]} 41. Ke4 {[%clk 0:00:20]}  Rh4+ {[%clk 0:00:37]} 42. Kd3 {[%clk 0:00:20]}  Rh3+ {[%clk 0:00:37]} 43. Kc4 {[%clk 0:00:20]}  Rh1 {[%clk 0:00:28]} 44. Naxc6 {[%clk 0:00:19]}  Rc1+ {[%clk 0:00:28]} 45. Kd5 {[%clk 0:00:19]}  Rb1 {[%clk 0:00:26]} 46. b5 {[%clk 0:00:20]}  Kc7 {[%clk 0:00:22]} 47. e6 {[%clk 0:00:17]}  Re1 {[%clk 0:00:21]} 48. e7 {[%clk 0:00:14]}  Kb6 {[%clk 0:00:19]} 49. Ne6 {[%clk 0:00:13]}  Rd1+ {[%clk 0:00:14]} 50. Ke5 {[%clk 0:00:14]}  Re1+ {[%clk 0:00:14]} 51. Kf6 {[%clk 0:00:13]}  Rf1+ {[%clk 0:00:14]} 52. Kg7 {[%clk 0:00:13]}  Rg1+ {[%clk 0:00:13]} 53. Kf8 {[%clk 0:00:14]}  Rf1+ {[%clk 0:00:13]} 54. Kg8 {[%clk 0:00:12]}  Rg1+ {[%clk 0:00:13]} 55. Kf8 {[%clk 0:00:09]}  Rf1+ {[%clk 0:00:12]} 56. Ke8 {[%clk 0:00:10]}  Re1 {[%clk 0:00:12]} 57. Kd7 {[%clk 0:00:10]}  Rd1+ {[%clk 0:00:11]} 58. Ncd4 {[%clk 0:00:10]}  Rc1 {[%clk 0:00:04]} 59. e8=Q {[%clk 0:00:10]}  Ka5 {[%clk 0:00:00]} 60. Qa8+ {[%clk 0:00:09]} 1-0


[Site "https://www.chess.com"]

[Event "Titled Tuesday Blitz May 9 Early 2023"]
[White "Schut, Han"]
[Black "Pasti, Aron"]
[WhiteFideId "1005561"]
[BlackFideId "785857"]
[WhiteElo "2024"]
[BlackElo "2173"]
[Result "1-0"]
[Round "05"]
[TimeControl "180+2"]
[Date "2023.05.09"]
[WhiteClock "0:02:32"]
[BlackClock "0:02:14"]

1. e4 {[%clk 0:03:00]}  c5 {[%clk 0:02:52]} 2. Nf3 {[%clk 0:03:01]}  e6 {[%clk 0:02:48]} 3. c4 {[%clk 0:03:00]}  Nc6 {[%clk 0:02:48]} 4. Nc3 {[%clk 0:03:01]}  Nd4 {[%clk 0:02:46]} 5. Be2 {[%clk 0:03:00]}  Ne7 {[%clk 0:02:37]} 6. O-O {[%clk 0:02:58]}  Nec6 {[%clk 0:02:36]} 7. d3 {[%clk 0:02:57]}  g6 {[%clk 0:02:36]} 8. Be3 {[%clk 0:02:44]}  Bg7 {[%clk 0:02:36]} 9. Bxd4 {[%clk 0:02:34]}  cxd4 {[%clk 0:02:30]} 10. Nb5 {[%clk 0:02:34]}  d5 {[%clk 0:02:19]} 11. exd5 {[%clk 0:02:32]}  exd5 {[%clk 0:02:15]} 12. cxd5 {[%clk 0:02:32]}  Qxd5 {[%clk 0:02:14]} 13. Nc7+ {[%clk 0:02:32]} 1-0


[Site "https://www.chess.com"]

[Event "Titled Tuesday Blitz May 9 Early 2023"]
[White "petr577"]
[Black "Mika, Tomasz"]
[BlackFideId "1132970"]
[WhiteElo "2200"]
[BlackElo "2179"]
[Result "0-1"]
[Round "05"]
[TimeControl "180+2"]
[Date "2023.05.09"]
[WhiteClock "0:00:06"]
[BlackClock "0:00:13"]

1. d4 {[%clk 0:02:59]}  d5 {[%clk 0:03:00]} 2. c4 {[%clk 0:02:59]}  e6 {[%clk 0:03:00]} 3. Nf3 {[%clk 0:02:59]}  Nf6 {[%clk 0:03:00]} 4. g3 {[%clk 0:03:00]}  Bb4+ {[%clk 0:02:59]} 5. Bd2 {[%clk 0:03:00]}  Be7 {[%clk 0:03:00]} 6. Bg2 {[%clk 0:03:00]}  O-O {[%clk 0:03:00]} 7. O-O {[%clk 0:03:00]}  dxc4 {[%clk 0:02:59]} 8. Qc2 {[%clk 0:02:56]}  a6 {[%clk 0:02:43]} 9. Qxc4 {[%clk 0:02:55]}  b5 {[%clk 0:02:43]} 10. Qc2 {[%clk 0:02:55]}  Bb7 {[%clk 0:02:43]} 11. Ba5 {[%clk 0:02:55]}  Nc6 {[%clk 0:02:32]} 12. Bc3 {[%clk 0:02:35]}  b4 {[%clk 0:02:32]} 13. Bd2 {[%clk 0:02:35]}  Nxd4 {[%clk 0:02:30]} 14. Nxd4 {[%clk 0:02:35]}  Bxg2 {[%clk 0:02:30]} 15. Nxe6 {[%clk 0:02:30]}  Qd5 {[%clk 0:02:14]} 16. Nf4 {[%clk 0:02:25]}  Qe4 {[%clk 0:02:07]} 17. Qxe4 {[%clk 0:02:01]}  Bxe4 {[%clk 0:02:08]} 18. Rc1 {[%clk 0:02:00]}  c5 {[%clk 0:01:52]} 19. f3 {[%clk 0:02:00]}  Bb7 {[%clk 0:01:29]} 20. e4 {[%clk 0:02:00]}  g5 {[%clk 0:01:21]} 21. Nd3 {[%clk 0:02:00]}  g4 {[%clk 0:01:18]} 22. Nxc5 {[%clk 0:01:55]}  Bxc5+ {[%clk 0:01:15]} 23. Rxc5 {[%clk 0:01:55]}  gxf3 {[%clk 0:01:15]} 24. Rg5+ {[%clk 0:01:35]}  Kh8 {[%clk 0:01:15]} 25. Bxb4 {[%clk 0:01:25]}  Nxe4 {[%clk 0:01:15]} 26. Rf5 {[%clk 0:01:12]}  Rfd8 {[%clk 0:00:58]} 27. Nc3 {[%clk 0:00:46]}  Rd2 {[%clk 0:00:51]} 28. Nxe4 {[%clk 0:00:44]}  Rg2+ {[%clk 0:00:50]} 29. Kf1 {[%clk 0:00:42]}  Bxe4 {[%clk 0:00:51]} 30. Rg5 {[%clk 0:00:22]}  f6 {[%clk 0:00:42]} 31. Bc3 {[%clk 0:00:21]}  Bd3+ {[%clk 0:00:34]} 32. Ke1 {[%clk 0:00:21]}  Re8+ {[%clk 0:00:34]} 33. Kd1 {[%clk 0:00:20]}  Re6 {[%clk 0:00:17]} 34. b3 {[%clk 0:00:14]}  f2 {[%clk 0:00:17]} 35. Rf5 {[%clk 0:00:12]}  f1=Q+ {[%clk 0:00:14]} 36. Rxf1 {[%clk 0:00:12]}  Bxf1 {[%clk 0:00:15]} 37. Rc1 {[%clk 0:00:12]}  Bb5 {[%clk 0:00:13]} 38. a4 {[%clk 0:00:07]}  Rd6+ {[%clk 0:00:13]} 39. Ke1 {[%clk 0:00:07]}  Re2+ {[%clk 0:00:13]} 40. Kf1 {[%clk 0:00:07]}  Rc2+ {[%clk 0:00:13]} 41. axb5 {[%clk 0:00:07]}  Rxc1+ {[%clk 0:00:13]} 42. Ke2 {[%clk 0:00:06]}  Rxc3 {[%clk 0:00:13]} 0-1


[Site "https://www.chess.com"]

[Event "Titled Tuesday Blitz May 9 Early 2023"]
[White "LeoLV10"]
[Black "Tarnowska, Aleksandra"]
[BlackFideId "1180967"]
[WhiteElo "2389"]
[BlackElo "1776"]
[Result "1-0"]
[Round "05"]
[TimeControl "180+2"]
[Date "2023.05.09"]
[WhiteClock "0:00:38"]
[BlackClock "0:00:01"]

1. e4 {[%clk 0:02:53]}  c5 {[%clk 0:02:48]} 2. Nf3 {[%clk 0:02:51]}  e6 {[%clk 0:02:49]} 3. d4 {[%clk 0:02:52]}  cxd4 {[%clk 0:02:50]} 4. Nxd4 {[%clk 0:02:52]}  a6 {[%clk 0:02:49]} 5. Bd3 {[%clk 0:02:45]}  Bc5 {[%clk 0:02:48]} 6. Nb3 {[%clk 0:02:45]}  Be7 {[%clk 0:02:49]} 7. O-O {[%clk 0:02:45]}  d6 {[%clk 0:02:47]} 8. c4 {[%clk 0:02:44]}  Nd7 {[%clk 0:02:46]} 9. Nc3 {[%clk 0:02:45]}  Qc7 {[%clk 0:02:46]} 10. Nd2 {[%clk 0:02:38]}  b6 {[%clk 0:02:44]} 11. Re1 {[%clk 0:02:29]}  Bb7 {[%clk 0:02:35]} 12. b3 {[%clk 0:02:23]}  Ngf6 {[%clk 0:02:29]} 13. Bb2 {[%clk 0:02:21]}  Ne5 {[%clk 0:02:24]} 14. Bf1 {[%clk 0:02:19]}  Ng6 {[%clk 0:02:18]} 15. Rc1 {[%clk 0:02:15]}  h5 {[%clk 0:02:15]} 16. h3 {[%clk 0:02:11]}  Rd8 {[%clk 0:02:04]} 17. Qc2 {[%clk 0:02:08]}  Nf4 {[%clk 0:01:52]} 18. b4 {[%clk 0:02:01]}  h4 {[%clk 0:01:50]} 19. Nf3 {[%clk 0:01:57]}  Rh5 {[%clk 0:01:27]} 20. a4 {[%clk 0:01:41]}  g5 {[%clk 0:01:26]} 21. Nd4 {[%clk 0:01:34]}  g4 {[%clk 0:01:20]} 22. hxg4 {[%clk 0:01:26]}  Nxg4 {[%clk 0:01:17]} 23. f3 {[%clk 0:01:26]}  Ne5 {[%clk 0:01:03]} 24. Na2 {[%clk 0:00:48]}  h3 {[%clk 0:01:02]} 25. g3 {[%clk 0:00:48]}  Nxf3+ {[%clk 0:01:02]} 26. Nxf3 {[%clk 0:00:47]}  Ng6 {[%clk 0:00:43]} 27. Kh2 {[%clk 0:00:44]}  Kd7 {[%clk 0:00:25]} 28. a5 {[%clk 0:00:41]}  Rg8 {[%clk 0:00:23]} 29. axb6 {[%clk 0:00:40]}  Qb8 {[%clk 0:00:13]} 30. c5 {[%clk 0:00:38]}  d5 {[%clk 0:00:13]} 31. c6+ {[%clk 0:00:36]}  Bxc6 {[%clk 0:00:02]} 32. Qxc6+ {[%clk 0:00:36]}  Kd8 {[%clk 0:00:01]} 33. Qc7+ {[%clk 0:00:36]}  Qxc7 {[%clk 0:00:02]} 34. bxc7+ {[%clk 0:00:37]}  Kc8 {[%clk 0:00:02]} 35. exd5 {[%clk 0:00:37]}  exd5 {[%clk 0:00:01]} 36. Bxa6+ {[%clk 0:00:38]}  Kd7 {[%clk 0:00:01]} 37. c8=Q+ {[%clk 0:00:38]}  Rxc8 {[%clk 0:00:01]} 38. Bxc8+ {[%clk 0:00:38]}  Kd6 {[%clk 0:00:02]} 39. Bg4 {[%clk 0:00:37]}  Rh7 {[%clk 0:00:01]} 40. b5 {[%clk 0:00:37]}  f6 {[%clk 0:00:01]} 41. Rc6# {[%clk 0:00:38]} 1-0


[Site "https://www.chess.com"]

[Event "Titled Tuesday Blitz May 9 Early 2023"]
[White "Mazurkiewicz, Michal"]
[Black "Dahlgren, James Allen"]
[WhiteFideId "1124943"]
[BlackFideId "22256873"]
[WhiteElo "2054"]
[BlackElo "2191"]
[Result "0-1"]
[Round "05"]
[TimeControl "180+2"]
[Date "2023.05.09"]
[WhiteClock "0:00:00"]
[BlackClock "0:00:06"]

1. e4 {[%clk 0:03:00]}  e6 {[%clk 0:03:00]} 2. d3 {[%clk 0:02:57]}  c5 {[%clk 0:03:01]} 3. Nd2 {[%clk 0:02:58]}  d5 {[%clk 0:03:01]} 4. Ngf3 {[%clk 0:02:58]}  f5 {[%clk 0:03:02]} 5. Qe2 {[%clk 0:02:54]}  Be7 {[%clk 0:03:01]} 6. g3 {[%clk 0:02:28]}  Nf6 {[%clk 0:03:01]} 7. Bg2 {[%clk 0:02:28]}  O-O {[%clk 0:03:01]} 8. O-O {[%clk 0:02:25]}  Nc6 {[%clk 0:03:02]} 9. c3 {[%clk 0:02:25]}  b5 {[%clk 0:03:01]} 10. e5 {[%clk 0:01:57]}  Nd7 {[%clk 0:03:01]} 11. c4 {[%clk 0:01:58]}  bxc4 {[%clk 0:02:55]} 12. dxc4 {[%clk 0:01:59]}  d4 {[%clk 0:02:50]} 13. Nb3 {[%clk 0:01:54]}  Qb6 {[%clk 0:02:33]} 14. Bf4 {[%clk 0:01:51]}  a5 {[%clk 0:02:30]} 15. Nc1 {[%clk 0:01:51]}  a4 {[%clk 0:02:17]} 16. Nd3 {[%clk 0:01:50]}  Ba6 {[%clk 0:02:05]} 17. Rac1 {[%clk 0:01:47]}  Rfb8 {[%clk 0:02:00]} 18. h4 {[%clk 0:01:45]}  Nb4 {[%clk 0:01:45]} 19. Nxb4 {[%clk 0:00:55]}  Qxb4 {[%clk 0:01:46]} 20. Ne1 {[%clk 0:00:56]}  Bb7 {[%clk 0:01:38]} 21. Nd3 {[%clk 0:00:54]}  Qb6 {[%clk 0:01:32]} 22. Bxb7 {[%clk 0:00:54]}  Rxb7 {[%clk 0:01:30]} 23. g4 {[%clk 0:00:51]}  fxg4 {[%clk 0:01:22]} 24. Qxg4 {[%clk 0:00:52]}  Rf8 {[%clk 0:01:11]} 25. Kh2 {[%clk 0:00:41]}  Qd8 {[%clk 0:00:47]} 26. Rg1 {[%clk 0:00:38]}  Rf7 {[%clk 0:00:43]} 27. h5 {[%clk 0:00:34]}  Nf8 {[%clk 0:00:41]} 28. Bh6 {[%clk 0:00:24]}  Bh4 {[%clk 0:00:15]} 29. Rg2 {[%clk 0:00:19]}  Kh8 {[%clk 0:00:14]} 30. Rcg1 {[%clk 0:00:18]}  g6 {[%clk 0:00:10]} 31. Bxf8 {[%clk 0:00:15]}  Rxf8 {[%clk 0:00:08]} 32. hxg6 {[%clk 0:00:15]}  hxg6 {[%clk 0:00:09]} 33. Qh3 {[%clk 0:00:01]}  Rh7 {[%clk 0:00:10]} 34. Rxg6 {[%clk 0:00:01]}  Bxf2 {[%clk 0:00:09]} 35. Rh6 {[%clk 0:00:00]}  Bxg1+ {[%clk 0:00:06]} 0-1


[Site "https://www.chess.com"]

[Event "Titled Tuesday Blitz May 9 Early 2023"]
[White "Chemin, Justo Reinaldo"]
[Black "Marcziter, Dmitrii"]
[WhiteFideId "2101580"]
[BlackFideId "13900765"]
[WhiteElo "1940"]
[BlackElo "2162"]
[Result "1/2-1/2"]
[Round "05"]
[TimeControl "180+2"]
[Date "2023.05.09"]
[WhiteClock "0:00:11"]
[BlackClock "0:00:18"]

1. e4 {[%clk 0:03:00]}  c5 {[%clk 0:02:59]} 2. Nf3 {[%clk 0:02:59]}  a6 {[%clk 0:02:58]} 3. d3 {[%clk 0:02:58]}  Nc6 {[%clk 0:02:57]} 4. b3 {[%clk 0:02:57]}  e6 {[%clk 0:02:53]} 5. Bb2 {[%clk 0:02:58]}  d5 {[%clk 0:02:52]} 6. Nbd2 {[%clk 0:02:58]}  Nf6 {[%clk 0:02:51]} 7. e5 {[%clk 0:02:55]}  Nd7 {[%clk 0:02:51]} 8. Qe2 {[%clk 0:02:54]}  g5 {[%clk 0:02:49]} 9. h3 {[%clk 0:02:40]}  h5 {[%clk 0:02:47]} 10. O-O-O {[%clk 0:02:34]}  Bg7 {[%clk 0:02:43]} 11. Re1 {[%clk 0:02:33]}  g4 {[%clk 0:02:42]} 12. hxg4 {[%clk 0:02:32]}  hxg4 {[%clk 0:02:42]} 13. Rxh8+ {[%clk 0:02:32]}  Bxh8 {[%clk 0:02:40]} 14. Nh2 {[%clk 0:02:31]}  Bxe5 {[%clk 0:02:34]} 15. Nxg4 {[%clk 0:02:20]}  Bxb2+ {[%clk 0:02:27]} 16. Kxb2 {[%clk 0:02:21]}  Qg5 {[%clk 0:02:21]} 17. Ne3 {[%clk 0:02:03]}  b5 {[%clk 0:02:05]} 18. Nf3 {[%clk 0:01:58]}  Qg7+ {[%clk 0:02:02]} 19. Kb1 {[%clk 0:01:55]}  Nb6 {[%clk 0:02:00]} 20. Nf5 {[%clk 0:01:36]}  Qf8 {[%clk 0:01:51]} 21. Ne5 {[%clk 0:01:27]}  Bb7 {[%clk 0:01:46]} 22. Nxc6 {[%clk 0:01:25]}  Bxc6 {[%clk 0:01:45]} 23. Qe5 {[%clk 0:01:25]}  O-O-O {[%clk 0:01:40]} 24. Ng3 {[%clk 0:01:14]}  Qh8 {[%clk 0:01:37]} 25. Qf4 {[%clk 0:01:06]}  Qg7 {[%clk 0:01:27]} 26. Be2 {[%clk 0:01:04]}  d4 {[%clk 0:01:24]} 27. Bf3 {[%clk 0:01:02]}  Bd5 {[%clk 0:01:24]} 28. Ne4 {[%clk 0:00:56]}  Qf8 {[%clk 0:01:17]} 29. Rh1 {[%clk 0:00:46]}  c4 {[%clk 0:01:09]} 30. dxc4 {[%clk 0:00:41]}  bxc4 {[%clk 0:01:08]} 31. Nf6 {[%clk 0:00:38]}  d3 {[%clk 0:00:53]} 32. Nxd5 {[%clk 0:00:29]}  exd5 {[%clk 0:00:51]} 33. Bg4+ {[%clk 0:00:22]}  Kb7 {[%clk 0:00:47]} 34. Rh7 {[%clk 0:00:21]}  dxc2+ {[%clk 0:00:41]} 35. Kxc2 {[%clk 0:00:19]}  cxb3+ {[%clk 0:00:39]} 36. axb3 {[%clk 0:00:14]}  Qc5+ {[%clk 0:00:36]} 37. Kb2 {[%clk 0:00:12]}  Rf8 {[%clk 0:00:25]} 38. Rxf7+ {[%clk 0:00:11]}  Rxf7 {[%clk 0:00:20]} 39. Qxf7+ {[%clk 0:00:12]}  Kb8 {[%clk 0:00:19]} 40. Qe8+ {[%clk 0:00:11]}  Kb7 {[%clk 0:00:18]} 41. Qf7+ {[%clk 0:00:11]}  Kb8 {[%clk 0:00:18]} 42. Qe8+ {[%clk 0:00:11]}  Kb7 {[%clk 0:00:18]} 43. Qf7+ {[%clk 0:00:11]} 1/2-1/2


[Site "https://www.chess.com"]